bitfinex-derivatives/quotes_BTCF0:USTF0_20241019
["timestamp","ask_amount","ask_price","bid_price","bid_amount"]
[1729303225928,0.073231,68373.0,68372.0,0.04399256]
[1729303226123,0.073231,68373.0,68372.0,0.0001]
[1729303229433,0.434031,68373.0,68372.0,0.0001]
[1729303229639,0.794831,68373.0,68372.0,0.0001]
[1729303230137,0.073231,68373.0,68372.0,0.0001]
[1729303230341,0.794831,68373.0,68372.0,0.0001]
[1729303230537,0.794831,68373.0,68372.0,0.073233]
[1729303231634,0.7217,68373.0,68372.0,0.073233]
[1729303232231,0.7217,68373.0,68372.0,0.15912352]
[1729303233336,0.7217,68373.0,68372.0,0.26147831]
[1729303234747,0.7217,68373.0,68372.0,0.26145901]
[1729303237640,0.7217,68373.0,68372.0,0.15910403]
[1729303238042,0.3609,68373.0,68372.0,0.15910403]
[1729303238241,0.3609,68373.0,68372.0,0.26132701]
[1729303239340,0.3609,68373.0,68372.0,0.48214847]
[1729303240346,0.3609,68373.0,68372.0,0.37973763]
[1729303240734,0.0001,68373.0,68372.0,0.40555661]
[1729303241946,0.0001,68373.0,68372.0,0.28714599]
[1729303242541,0.0001,68373.0,68372.0,0.26132701]
[1729303242749,0.073231,68373.0,68372.0,0.26132701]
[1729303243837,0.073231,68373.0,68372.0,0.26110711]
[1729303247245,0.073231,68373.0,68371.0,0.0318]
[1729303247246,0.12851442,68373.0,68371.0,0.0318]
[1729303247448,0.10289857,68372.0,68371.0,0.0318]
[1729303247949,0.04771515,68372.0,68371.0,0.104934]
[1729303252156,0.04728682,68372.0,68371.0,0.104934]
[1729303253348,0.04729942,68372.0,68371.0,0.104934]
[1729303254351,0.0001,68372.0,68371.0,0.29408578]
[1729303255449,0.3609,68372.0,68371.0,0.29408578]
[1729303255858,0.0001,68372.0,68371.0,0.29408578]
[1729303256062,0.3609,68372.0,68371.0,0.29408578]
[1729303261357,0.3609,68372.0,68371.0,0.29404841]
[1729303262459,0.46292436,68372.0,68371.0,0.104934]
[1729303263261,0.40811062,68372.0,68371.0,0.104934]
[1729303266654,0.3609,68372.0,68371.0,0.104934]
[1729303269465,0.3609,68372.0,68371.0,0.52955594]
[1729303270357,0.0001,68372.0,68371.0,0.4125729]
[1729303270551,0.0001,68372.0,68371.0,0.52906033]
[1729303270751,0.0001,68372.0,68371.0,0.41213243]
[1729303270960,0.0001,68372.0,68371.0,0.52906033]
[1729303271165,0.0001,68372.0,68371.0,0.41213243]
[1729303271362,0.0001,68372.0,68371.0,0.52904743]
[1729303271562,0.0001,68372.0,68371.0,0.41213243]
[1729303272560,0.0001,68372.0,68371.0,0.5290349]
[1729303272755,0.0001,68372.0,68371.0,0.41213243]
[1729303272963,0.0001,68372.0,68371.0,0.5290349]
[1729303273157,0.0001,68372.0,68371.0,0.41213243]
[1729303275269,0.0001,68372.0,68371.0,0.41256186]
[1729303276873,0.0001,68372.0,68371.0,0.3957717]
[1729303277374,0.0001,68372.0,68371.0,0.36627383]
[1729303277575,0.0001,68372.0,68371.0,0.26400717]
[1729303277778,0.0001,68372.0,68371.0,0.26400695]
[1729303278866,0.0001,68372.0,68371.0,0.26400627]
[1729303279062,0.0001,68372.0,68371.0,0.19096245]
[1729303279778,0.3608,68382.0,68381.0,0.073123]
[1729303280776,0.3608,68382.0,68381.0,0.13155183]
[1729303281471,0.3608,68382.0,68381.0,0.073123]
[1729303281976,0.3608,68382.0,68381.0,0.13155183]
[1729303282577,0.3608,68382.0,68381.0,0.073123]
[1729303283075,0.3608,68382.0,68381.0,0.13155183]
[1729303283675,0.3608,68382.0,68381.0,0.073123]
[1729303284374,0.3608,68382.0,68381.0,0.26114525]
[1729303285470,0.3608,68382.0,68381.0,0.28725225]
[1729303288977,0.3608,68382.0,68381.0,0.28704973]
[1729303289867,0.0303,68390.0,68381.0,0.28704973]
[1729303290077,0.0303,68390.0,68388.0,0.073115]
[1729303290365,0.0303,68390.0,68388.0,0.15880068]
[1729303291466,0.36299435,68389.0,68388.0,0.15880068]
[1729303292571,0.36299435,68389.0,68382.0,0.0001]
[1729303292572,0.4107357,68389.0,68382.0,0.0001]
[1729303292773,0.3609,68383.0,68382.0,0.0001]
[1729303292978,0.3609,68383.0,68382.0,0.073222]
[1729303295073,0.0001,68383.0,68382.0,0.073222]
[1729303298576,0.04792202,68383.0,68382.0,0.073222]
[1729303299586,0.0001,68383.0,68382.0,0.26120203]
[1729303300083,0.3609,68383.0,68382.0,0.26120203]
[1729303303087,0.3609,68383.0,68382.0,0.26840101]
[1729303303489,0.0001,68383.0,68382.0,0.26840101]
[1729303303687,0.3609,68383.0,68382.0,0.26840101]
[1729303303880,0.0001,68383.0,68382.0,0.26840101]
[1729303304081,0.3609,68383.0,68382.0,0.26840101]
[1729303307780,0.0001,68383.0,68382.0,0.26840101]
[1729303307984,0.3609,68383.0,68382.0,0.26840101]
[1729303309690,0.0001,68383.0,68382.0,0.26840101]
[1729303312487,0.0001,68383.0,68382.0,0.18281271]
[1729303312697,0.0001,68383.0,68382.0,0.2686433]
[1729303314601,0.0001,68383.0,68382.0,0.08050594]
[1729303314799,0.0478308,68383.0,68382.0,0.08050594]
[1729303315298,0.36299435,68389.0,68388.0,0.073115]
[1729303315491,0.00076,68405.0,68404.0,0.073098]
[1729303315692,0.11915514,68410.0,68399.0,0.3608]
[1729303315892,0.0001,68400.0,68399.0,0.433904]
[1729303317497,0.0001,68400.0,68399.0,0.46042491]
[1729303321305,0.0001,68400.0,68399.0,0.09962491]
[1729303322402,0.0001,68400.0,68399.0,0.073104]
[1729303322591,0.073203,68400.0,68399.0,0.073104]
[1729303325493,0.073104,68399.0,68398.0,0.0001]
[1729303325698,0.073104,68399.0,68385.0,0.00219308]
[1729303325699,0.073116,68388.0,68386.0,0.073117]
[1729303325894,0.073118,68386.0,68385.0,0.00219308]
[1729303326098,0.073218,68386.0,68385.0,0.00219308]
[1729303328004,0.073218,68386.0,68385.0,0.07531208]
[1729303328304,0.0001,68386.0,68385.0,0.07531208]
[1729303336507,0.073218,68386.0,68385.0,0.07531208]
[1729303344907,0.073218,68386.0,68382.0,0.0002]
[1729303344908,0.073121,68383.0,68382.0,0.0002]
[1729303345113,0.073221,68383.0,68382.0,0.0002]
[1729303345313,1.111941,68383.0,68379.0,0.05830146]
[1729303345517,0.073125,68379.0,68378.0,0.05830146]
[1729303345817,0.073225,68379.0,68378.0,0.05830146]
[1729303346820,0.073225,68379.0,68378.0,0.13142746]
[1729303347522,0.073225,68379.0,68378.0,0.073126]
[1729303351113,0.073225,68379.0,68378.0,0.23276593]
[1729303351817,0.073225,68379.0,68378.0,0.073126]
[1729303352618,0.0001,68379.0,68378.0,0.073126]
[1729303353223,0.0001,68379.0,68378.0,0.14625498]
[1729303353426,0.0001,68379.0,68378.0,0.15956463]
[1729303360228,0.0001,68379.0,68378.0,0.24723463]
[1729303360929,0.0001,68379.0,68378.0,0.15956463]
[1729303361627,0.0001,68379.0,68378.0,0.24723651]
[1729303361827,0.0001,68379.0,68378.0,0.15956463]
[1729303362731,0.0001,68379.0,68378.0,0.24724039]
[1729303364637,0.073225,68379.0,68378.0,0.24724039]
[1729303365324,0.073225,68379.0,68378.0,0.15956463]
[1729303366628,0.073225,68379.0,68378.0,0.073126]
[1729303372539,0.073225,68379.0,68378.0,0.1461977]
[1729303372736,0.073225,68379.0,68378.0,0.073126]
[1729303373939,0.073225,68379.0,68378.0,0.1461977]
[1729303374343,0.073225,68379.0,68378.0,0.23297658]
[1729303374641,0.073225,68379.0,68378.0,0.15990488]
[1729303374843,0.073225,68379.0,68378.0,0.26324164]
[1729303379846,0.073225,68379.0,68378.0,0.15990488]
[1729303380449,0.073225,68379.0,68378.0,0.24768017]
[1729303380835,0.073225,68379.0,68378.0,0.15989044]
[1729303381045,0.073225,68379.0,68378.0,0.24766573]
[1729303381851,0.073225,68379.0,68378.0,0.15989044]
[1729303386146,0.09893218,68379.0,68378.0,0.15989044]
[1729303389355,0.073225,68379.0,68378.0,0.15989044]
[1729303389560,0.073225,68379.0,68378.0,0.15996122]
[1729303392052,0.073225,68379.0,68378.0,0.26348236]
[1729303393555,0.0001,68379.0,68378.0,0.26348236]
[1729303398972,0.0001,68379.0,68378.0,0.26285842]
[1729303399169,0.0001,68379.0,68378.0,0.28860536]
[1729303399369,0.0001,68383.0,68382.0,0.073122]
[1729303399570,0.0001,68383.0,68382.0,0.48502828]
[1729303399772,0.0001,68383.0,68382.0,0.38263334]
[1729303400273,0.0001,68383.0,68382.0,0.36521541]
[1729303400462,0.0001,68383.0,68382.0,0.26285442]
[1729303400867,0.0001,68383.0,68382.0,0.26742728]
[1729303401378,0.01166977,68383.0,68382.0,0.24633524]
[1729303401574,0.01166977,68383.0,68382.0,0.24176238]
[1729303402472,0.01166977,68383.0,68382.0,0.24633526]
[1729303402976,0.01166977,68383.0,68382.0,0.24176238]
[1729303403165,0.01166977,68383.0,68382.0,0.46319383]
[1729303403365,0.01166977,68383.0,68382.0,0.36083284]
[1729303404169,0.01166977,68383.0,68382.0,0.46308785]
[1729303404971,0.01166977,68383.0,68382.0,0.05202996]
[1729303405475,0.01166977,68383.0,68382.0,0.09584404]
[1729303407182,0.01166977,68383.0,68382.0,0.10300743]
[1729303407986,0.01166977,68383.0,68382.0,0.05919335]
[1729303411682,0.01166977,68383.0,68382.0,0.10297146]
[1729303411878,0.01166977,68383.0,68382.0,0.24736825]
[1729303413179,0.01166977,68383.0,68382.0,0.24732466]
[1729303413688,0.01166977,68383.0,68382.0,1.28604466]
[1729303414387,0.01166977,68383.0,68382.0,0.84732466]
[1729303415287,0.01166977,68383.0,68382.0,1.20812466]
[1729303416081,0.01166977,68383.0,68382.0,1.64684466]
[1729303416291,0.01166977,68383.0,68382.0,1.20812466]
[1729303419088,0.01166977,68383.0,68382.0,0.84732466]
[1729303419290,0.01166977,68383.0,68382.0,1.20812466]
[1729303421287,0.01166977,68383.0,68382.0,0.60812466]
[1729303426292,0.01166977,68383.0,68382.0,0.72691127]
[1729303427085,0.01166977,68383.0,68382.0,0.60812466]
[1729303427295,0.01166977,68383.0,68382.0,0.60861291]
[1729303430696,0.01116977,68383.0,68382.0,0.60861291]
[1729303431895,0.01116977,68383.0,68382.0,0.60869514]
[1729303432296,0.01116977,68383.0,68382.0,0.82995266]
[1729303432501,0.01116977,68383.0,68382.0,0.7275661]
[1729303432684,0.01116977,68383.0,68382.0,0.7272661]
[1729303434996,0.01116977,68383.0,68382.0,0.71058075]
[1729303435192,0.01116977,68383.0,68382.0,0.34978075]
[1729303435496,0.01116977,68383.0,68382.0,0.24743064]
[1729303435685,0.01116977,68383.0,68382.0,0.36651298]
[1729303435885,0.01116977,68383.0,68382.0,0.46886309]
[1729303436295,0.01116977,68383.0,68382.0,0.24743064]
[1729303436495,0.01086977,68383.0,68382.0,0.46884243]
[1729303436797,0.01086977,68383.0,68382.0,0.24747424]
[1729303436998,0.01086977,68383.0,68382.0,0.36660031]
[1729303438602,0.01086977,68383.0,68382.0,0.05889335]
[1729303438898,0.01086977,68383.0,68382.0,0.36642179]
[1729303439498,0.01086977,68383.0,68382.0,0.48332426]
[1729303439703,0.01086977,68383.0,68382.0,0.36642179]
[1729303440696,0.01086977,68383.0,68382.0,0.48332426]
[1729303440902,0.01086977,68383.0,68382.0,0.36618596]
[1729303441992,0.01086977,68383.0,68382.0,0.24725892]
[1729303444804,0.01086977,68383.0,68382.0,0.2473735]
[1729303445795,0.01086977,68383.0,68382.0,0.36635853]
[1729303448694,0.01086977,68383.0,68382.0,0.46875508]
[1729303448894,0.01086977,68383.0,68382.0,0.34972029]
[1729303449604,0.01086977,68383.0,68382.0,0.46869367]
[1729303450099,0.01086977,68383.0,68382.0,0.36634688]
[1729303450496,0.01086977,68383.0,68382.0,0.48324935]
[1729303451005,0.01086977,68383.0,68382.0,0.36634688]
[1729303451394,0.01086977,68383.0,68382.0,0.48324935]
[1729303451902,0.01086977,68383.0,68382.0,0.36634688]
[1729303452103,0.01086977,68383.0,68382.0,0.48324935]
[1729303452407,0.01086977,68383.0,68382.0,0.36634688]
[1729303452805,0.01086977,68383.0,68382.0,0.50157139]
[1729303455597,0.01086977,68383.0,68382.0,0.36634688]
[1729303455997,0.01086977,68383.0,68382.0,0.50162204]
[1729303457000,0.01086977,68383.0,68382.0,0.24735756]
[1729303465004,0.01086977,68383.0,68382.0,0.50117628]
[1729303465614,0.01086977,68383.0,68382.0,0.6326281]
[1729303466412,0.01086977,68383.0,68382.0,0.48297975]
[1729303466913,0.01086977,68383.0,68382.0,0.36603607]
[1729303468307,0.01086977,68383.0,68382.0,0.72683607]
[1729303468513,0.01086977,68383.0,68382.0,0.72635244]
[1729303472217,0.01086977,68383.0,68382.0,0.82869496]
[1729303473115,0.01086977,68383.0,68382.0,0.72635244]
[1729303475009,0.04216977,68383.0,68382.0,0.72635244]
[1729303477815,0.04216977,68383.0,68382.0,0.41969335]
[1729303478120,0.04216977,68383.0,68382.0,0.7272153]
[1729303479223,0.04216977,68383.0,68382.0,0.6081995]
[1729303479418,0.04216977,68383.0,68382.0,0.50569218]
[1729303479809,0.04216977,68383.0,68382.0,0.60835618]
[1729303480221,0.04216977,68383.0,68382.0,0.50569218]
[1729303480421,0.04216977,68383.0,68382.0,0.14489218]
[1729303484433,0.04216977,68383.0,68382.0,0.24752789]
[1729303491218,0.04216977,68383.0,68382.0,0.14489218]
[1729303492032,0.04216977,68383.0,68382.0,0.14502218]
[1729303492326,0.04216977,68383.0,68382.0,0.09329222]
[1729303492527,0.71529077,68383.0,68382.0,0.08612883]
[1729303492832,0.71529077,68383.0,68382.0,0.17244052]
[1729303493332,0.11529077,68383.0,68382.0,0.17244052]
[1729303493522,0.11529077,68383.0,68382.0,0.24556252]
[1729303493722,0.04216977,68383.0,68382.0,0.24556252]
[1729303495126,0.04216977,68383.0,68382.0,0.3039905]
[1729303495319,0.04216977,68383.0,68382.0,0.15925083]
[1729303497332,0.04216977,68383.0,68382.0,0.21768259]
[1729303497534,0.04216977,68383.0,68382.0,0.15925083]
[1729303498032,0.04216977,68383.0,68382.0,0.21768301]
[1729303498234,0.04216977,68383.0,68382.0,0.15925083]
[1729303498935,0.01086977,68383.0,68382.0,0.15925083]
[1729303499840,0.01086977,68383.0,68382.0,0.073122]
[1729303500828,0.08399077,68383.0,68382.0,0.073122]
[1729303501528,0.073124,68380.0,68379.0,0.14615998]
[1729303501729,0.073224,68380.0,68379.0,0.14615998]
[1729303502126,0.073224,68380.0,68379.0,0.26231852]
[1729303502531,0.0001,68380.0,68379.0,0.26231852]
[1729303503737,0.0001,68380.0,68379.0,0.15943742]
[1729303504735,0.0001,68380.0,68379.0,0.15958198]
[1729303504932,0.073224,68380.0,68379.0,0.15958198]
[1729303506025,0.0001,68380.0,68379.0,0.15958198]
[1729303509428,0.0001,68380.0,68379.0,0.15967021]
[1729303512144,0.0001,68380.0,68379.0,0.262964]
[1729303512145,0.073224,68380.0,68379.0,0.262964]
[1729303512650,0.073224,68380.0,68379.0,0.15967021]
[1729303512844,0.434024,68380.0,68379.0,0.15967021]
[1729303513748,0.073224,68380.0,68379.0,0.15967021]
[1729303513937,0.434024,68380.0,68379.0,0.15967021]
[1729303514941,0.073224,68380.0,68379.0,0.15967021]
[1729303515248,0.434024,68380.0,68379.0,0.15967021]
[1729303515644,0.434024,68380.0,68379.0,0.26298426]
[1729303516634,0.073224,68380.0,68379.0,0.26298426]
[1729303519141,0.434024,68380.0,68379.0,0.15967021]
[1729303519441,0.3609,68380.0,68376.0,0.0001]
[1729303519639,0.073227,68377.0,68376.0,0.0001]
[1729303521350,0.073128,68376.0,68375.0,0.073129]
[1729303521547,0.073228,68376.0,68375.0,0.073129]
[1729303529146,0.0001,68376.0,68368.0,0.0314]
[1729303529346,0.073134,68372.0,68371.0,0.073131]
[1729303532854,0.09943434,68372.0,68371.0,0.073131]
[1729303534357,0.09943434,68372.0,68371.0,0.15804249]
[1729303542465,0.09943434,68372.0,68371.0,0.15809538]
[1729303547262,0.09943434,68372.0,68371.0,0.15732026]
[1729303548455,0.09943434,68372.0,68371.0,0.25772217]
[1729303549463,0.09943434,68372.0,68371.0,0.18459117]
[1729303553770,0.073134,68372.0,68371.0,0.18459117]
[1729303557871,0.073134,68372.0,68371.0,0.08418926]
[1729303558168,0.073134,68372.0,68371.0,0.15732326]
[1729303560265,0.073134,68372.0,68371.0,0.25765679]
[1729303560469,0.073134,68372.0,68371.0,0.25764798]
[1729303560670,0.073134,68372.0,68371.0,0.15732326]
[1729303560872,0.073134,68372.0,68371.0,0.25765143]
[1729303561059,0.073134,68372.0,68371.0,0.25763391]
[1729303561477,0.073134,68372.0,68371.0,0.25752925]
[1729303565465,0.073134,68372.0,68371.0,0.15725739]
[1729303569066,0.073229,68376.0,68375.0,0.073129]
[1729303569274,0.073229,68376.0,68375.0,0.24504171]
[1729303569471,0.073229,68376.0,68375.0,0.16091832]
[1729303569673,0.073229,68376.0,68375.0,0.24504073]
[1729303569871,0.09947813,68376.0,68375.0,0.24504073]
[1729303570979,0.073229,68376.0,68375.0,0.24504073]
[1729303572073,0.0001,68376.0,68375.0,0.24504073]
[1729303572275,0.0001,68376.0,68375.0,0.25741228]
[1729303572481,0.0001,68376.0,68375.0,0.38984158]
[1729303572787,0.0001,68376.0,68375.0,0.50597293]
[1729303573281,0.0001,68376.0,68375.0,0.38984158]
[1729303573475,0.0001,68376.0,68375.0,0.28751228]
[1729303574076,0.0001,68376.0,68375.0,0.31390352]
[1729303578586,0.073228,68376.0,68375.0,0.31390352]
[1729303580679,0.073228,68376.0,68375.0,0.21399603]
[1729303580978,0.073228,68376.0,68375.0,0.31405162]
[1729303583286,0.073228,68376.0,68375.0,0.31401229]
[1729303585492,0.073228,68376.0,68375.0,0.30167149]
[1729303591197,0.073228,68376.0,68375.0,0.21399603]
[1729303593203,0.073228,68376.0,68375.0,0.21413582]
[1729303593790,0.073228,68376.0,68375.0,0.18718649]
[1729303593986,0.073228,68376.0,68375.0,0.15708649]
[1729303594204,0.073228,68376.0,68375.0,0.24479076]
[1729303595297,0.073228,68376.0,68375.0,0.15708649]
[1729303598991,0.073228,68376.0,68375.0,0.25723849]
[1729303601907,0.073228,68376.0,68375.0,0.15708649]
[1729303607194,0.073228,68376.0,68375.0,0.15744231]
[1729303610508,0.073228,68376.0,68375.0,0.25793422]
[1729303610696,0.073228,68376.0,68375.0,0.15744231]
[1729303611502,0.0001,68376.0,68375.0,0.25802972]
[1729303613103,0.0001,68376.0,68375.0,0.15744231]
[1729303613307,0.0001,68376.0,68375.0,0.25779353]
[1729303613802,0.0001,68376.0,68375.0,0.17352773]
[1729303614004,0.0001,68376.0,68375.0,0.25775756]
[1729303615004,0.0001,68376.0,68375.0,0.44242626]
[1729303620906,0.0001,68376.0,68375.0,0.3420057]
[1729303621600,0.0001,68376.0,68375.0,0.34191261]
[1729303621802,0.0001,68376.0,68375.0,0.15728405]
[1729303622605,0.0001,68376.0,68375.0,0.25751966]
[1729303622806,0.0001,68376.0,68375.0,0.25756982]
[1729303626509,0.01086977,68383.0,68382.0,0.073122]
[1729303626709,0.01086977,68383.0,68382.0,0.24494255]
[1729303626908,0.01086977,68383.0,68382.0,0.15726018]
[1729303628010,0.01086977,68383.0,68382.0,0.24493058]
[1729303628618,0.01086977,68383.0,68382.0,0.16462642]
[1729303628816,0.01086977,68383.0,68382.0,0.25228818]
[1729303629721,0.01086977,68383.0,68382.0,0.27887267]
[1729303630220,0.01086977,68383.0,68382.0,0.27865947]
[1729303630424,0.01086977,68383.0,68382.0,0.19099771]
[1729303630918,0.01086977,68383.0,68382.0,0.29091636]
[1729303633425,0.01322042,68386.0,68385.0,0.073119]
[1729303633625,0.01322042,68386.0,68385.0,0.25696263]
[1729303637825,0.01322042,68386.0,68385.0,0.073119]
[1729303640133,0.01322042,68386.0,68385.0,0.673119]
[1729303640333,0.02240282,68388.0,68386.0,0.073118]
[1729303640533,0.02240282,68388.0,68386.0,0.105918]
[1729303642940,0.02240282,68388.0,68386.0,0.705918]
[1729303645445,0.02240282,68388.0,68386.0,0.673118]
[1729303645641,0.02240282,68388.0,68386.0,0.073118]
[1729303645944,0.11690273,68387.0,68386.0,0.08404284]
[1729303647339,0.11690273,68387.0,68386.0,0.15716084]
[1729303647541,0.11690273,68387.0,68381.0,0.74864419]
[1729303647542,0.71690273,68387.0,68384.0,0.08751246]
[1729303647846,0.073122,68382.0,68381.0,0.11331665]
[1729303648151,0.073222,68382.0,68381.0,0.02580419]
[1729303648359,0.073222,68382.0,68380.0,0.16073646]
[1729303648540,0.073222,68382.0,68381.0,0.07294754]
[1729303649251,0.073222,68382.0,68380.0,0.14617154]
[1729303649443,0.0001,68381.0,68380.0,0.14617154]
[1729303651946,0.0001,68381.0,68380.0,0.0001]
[1729303652146,0.073223,68381.0,68380.0,0.0001]
[1729303652747,0.073223,68381.0,68380.0,0.05845227]
[1729303652948,0.12257558,68381.0,68380.0,0.0001]
[1729303653260,0.073223,68381.0,68380.0,0.0001]
[1729303654247,0.073223,68381.0,68380.0,0.073224]
[1729303657261,0.09933441,68381.0,68380.0,0.073224]
[1729303658551,0.69933441,68381.0,68380.0,0.073224]
[1729303658748,0.69933441,68381.0,68380.0,0.0001]
[1729303658944,0.62621141,68381.0,68379.0,0.0001]
[1729303659150,0.62621141,68381.0,68376.0,0.073227]
[1729303659151,0.073127,68377.0,68376.0,0.073227]
[1729303659349,0.073227,68377.0,68376.0,0.073227]
[1729303659547,0.673227,68377.0,68376.0,0.073227]
[1729303662257,0.073227,68377.0,68376.0,0.073227]
[1729303665558,0.073227,68377.0,68376.0,0.13157927]
[1729303666160,0.073227,68377.0,68376.0,0.073227]
[1729303674364,0.12247399,68377.0,68376.0,0.073227]
[1729303674961,0.073227,68377.0,68376.0,0.073227]
[1729303675260,0.073227,68377.0,68376.0,0.15762843]
[1729303678167,0.073227,68377.0,68376.0,0.24523075]
[1729303678364,0.073227,68377.0,68376.0,0.15771829]
[1729303679265,0.073227,68377.0,68376.0,0.24523075]
[1729303680462,0.073227,68377.0,68376.0,0.15771829]
[1729303680973,0.073227,68377.0,68376.0,0.24546539]
[1729303681463,0.073227,68377.0,68376.0,0.15771829]
[1729303681966,0.0001,68377.0,68376.0,0.15771829]
[1729303684266,0.0001,68377.0,68376.0,0.2455011]
[1729303685275,0.0001,68377.0,68376.0,0.15771829]
[1729303685660,0.0001,68377.0,68376.0,0.24550096]
[1729303686174,0.0001,68377.0,68376.0,0.24550414]
[1729303686671,0.0001,68377.0,68376.0,0.15772147]
[1729303686871,0.0001,68377.0,68376.0,0.24550532]
[1729303687463,0.0001,68377.0,68376.0,0.15772147]
[1729303688674,0.0001,68377.0,68376.0,0.24550418]
[1729303689674,0.0001,68377.0,68376.0,0.15772147]
[1729303689873,0.0001,68377.0,68376.0,0.24550289]
[1729303690069,0.04952781,68377.0,68370.0,0.0307]
[1729303690279,0.04942781,68376.0,68375.0,0.073129]
[1729303692571,0.10798203,68377.0,68370.0,0.0307]
[1729303692770,0.0001,68377.0,68376.0,0.073128]
[1729303692962,0.05854906,68377.0,68376.0,0.073128]
[1729303693168,0.10889075,68377.0,68376.0,0.073128]
[1729303694172,0.18201775,68377.0,68376.0,0.073128]
[1729303697978,0.073227,68377.0,68376.0,0.25716454]
[1729303698376,0.073227,68377.0,68376.0,0.25720283]
[1729303698573,0.073227,68377.0,68376.0,0.15708774]
[1729303699981,0.073227,68377.0,68376.0,0.25717224]
[1729303700379,0.073227,68377.0,68376.0,0.25720616]
[1729303701087,0.073227,68377.0,68376.0,0.15710673]
[1729303703076,0.073227,68377.0,68376.0,0.08397873]
[1729303704989,0.073227,68377.0,68376.0,0.08399965]
[1729303705188,0.073227,68377.0,68376.0,0.15712765]
[1729303705684,0.0001,68377.0,68376.0,0.15712765]
[1729303705984,0.0001,68377.0,68376.0,0.073128]
[1729303706288,0.05019135,68377.0,68376.0,0.073128]
[1729303709784,0.05021304,68377.0,68376.0,0.073128]
[1729303713196,0.0001,68377.0,68376.0,0.15710663]
[1729303717684,0.0001,68377.0,68376.0,0.24489665]
[1729303717890,0.0001,68377.0,68376.0,0.15710663]
[1729303718284,0.0001,68377.0,68376.0,0.24489757]
[1729303718592,0.0001,68377.0,68376.0,0.15710663]
[1729303719291,0.0001,68377.0,68376.0,0.15712031]
[1729303719492,0.0001,68377.0,68376.0,0.2449111]
[1729303719693,0.0001,68377.0,68376.0,0.15712031]
[1729303723879,0.0001,68377.0,68376.0,0.24491062]
[1729303727996,0.10819985,68377.0,68376.0,0.073128]
[1729303728294,0.10819985,68377.0,68372.0,0.0302]
[1729303728484,0.0001,68377.0,68376.0,0.073128]
[1729303728688,0.05010816,68377.0,68376.0,0.073128]
[1729303733692,0.0001,68377.0,68376.0,0.073128]
[1729303733993,0.10722985,68377.0,68376.0,0.073128]
[1729303734700,0.10720833,68377.0,68376.0,0.073128]
[1729303735100,0.0001,68377.0,68376.0,0.15752252]
[1729303736594,0.0001,68377.0,68376.0,0.25812138]
[1729303738603,0.0001,68377.0,68376.0,0.15752252]
[1729303738804,0.0001,68377.0,68376.0,0.24532101]
[1729303739700,0.0001,68377.0,68376.0,0.15752252]
[1729303741908,0.0001,68377.0,68376.0,0.24532117]
[1729303742411,0.0001,68377.0,68376.0,0.15752252]
[1729303743103,0.0001,68377.0,68376.0,0.073128]
[1729303743303,0.04972398,68377.0,68376.0,0.073128]
[1729303745296,0.10735011,68377.0,68376.0,0.073128]
[1729303746401,0.10735576,68377.0,68376.0,0.073128]
[1729303749410,0.18048276,68377.0,68376.0,0.073128]
[1729303750203,0.073227,68377.0,68376.0,0.24541987]
[1729303750912,0.073227,68377.0,68376.0,0.15761776]
[1729303751119,0.073227,68377.0,68376.0,0.073128]
[1729303751309,0.434027,68377.0,68376.0,0.15768315]
[1729303752706,0.073227,68377.0,68376.0,0.15768315]
[1729303752903,0.434027,68377.0,68376.0,0.15768315]
[1729303755815,0.073227,68377.0,68376.0,0.15768315]
[1729303756017,0.434027,68377.0,68376.0,0.15768315]
[1729303757108,0.073227,68377.0,68376.0,0.15768315]
[1729303757307,0.434027,68377.0,68376.0,0.15768315]
[1729303758102,0.54066383,68377.0,68376.0,0.073128]
[1729303758717,0.46753683,68377.0,68376.0,0.073128]
[1729303760918,0.53374472,68377.0,68376.0,0.073128]
[1729303762723,0.073131,68373.0,68372.0,0.073132]
[1729303762924,0.12257599,68373.0,68372.0,0.073132]
[1729303765216,0.073231,68373.0,68372.0,0.15744444]
[1729303765425,0.073231,68373.0,68372.0,0.15746145]
[1729303768622,0.09896566,68373.0,68372.0,0.15746145]
[1729303771022,0.0001,68373.0,68372.0,0.15746145]
[1729303771217,0.0001,68373.0,68372.0,0.27766356]
[1729303771415,0.0001,68373.0,68372.0,0.18986145]
[1729303773028,0.073231,68373.0,68372.0,0.18986145]
[1729303773224,0.073231,68373.0,68372.0,0.105532]
[1729303777828,0.1229558,68373.0,68372.0,0.105532]
[1729303778623,0.4837558,68373.0,68372.0,0.105532]
[1729303779023,0.1229558,68373.0,68372.0,0.105532]
[1729303779224,0.4837558,68373.0,68372.0,0.105532]
[1729303780230,0.073133,68372.0,68371.0,0.0305]
[1729303780432,0.073233,68372.0,68371.0,0.11474982]
[1729303788542,0.073233,68372.0,68371.0,0.18788382]
[1729303788937,0.073233,68372.0,68371.0,0.27563062]
[1729303789132,0.073233,68372.0,68371.0,0.18788382]
[1729303790239,0.073233,68372.0,68371.0,0.28827406]
[1729303790441,0.073233,68372.0,68371.0,0.18788382]
[1729303793442,0.073233,68372.0,68371.0,0.2883377]
[1729303793643,0.073233,68372.0,68371.0,0.1879181]
[1729303795346,0.07312,68384.0,68371.0,0.1879181]
[1729303795347,0.02166273,68387.0,68386.0,0.073118]
[1729303795549,0.07137358,68387.0,68386.0,0.433918]
[1729303795843,0.02739766,68393.0,68388.0,0.073115]
[1729303796048,0.02739766,68393.0,68390.0,0.073113]
[1729303796345,0.02933796,68394.0,68387.0,0.43992]
[1729303796648,0.02933796,68394.0,68393.0,0.07311]
[1729303797148,0.02933796,68394.0,68393.0,0.67311]
[1729303798747,0.04019241,68398.0,68395.0,0.073108]
[1729303798939,0.04019241,68398.0,68395.0,0.673108]
[1729303800747,0.04019241,68398.0,68395.0,0.073108]
[1729303800943,0.04019241,68398.0,68395.0,0.673108]
[1729303801339,0.04019241,68398.0,68395.0,0.073108]
[1729303803152,0.04019241,68398.0,68395.0,0.69952563]
[1729303803343,0.04019241,68398.0,68395.0,0.09952563]
[1729303803643,0.04019241,68398.0,68395.0,0.69952563]
[1729303803851,0.04019241,68398.0,68395.0,0.09952563]
[1729303805952,0.11329741,68398.0,68395.0,0.09952563]
[1729303807167,0.04019241,68398.0,68395.0,0.09952563]
[1729303807358,0.10881436,68397.0,68395.0,0.09952563]
[1729303809156,0.03570836,68397.0,68395.0,0.09952563]
[1729303810554,0.03570836,68397.0,68395.0,0.14340618]
[1729303814349,0.03570836,68397.0,68395.0,0.09952563]